bitfinex-derivatives/quotes_ETHF0:USTF0_20241129
["timestamp","ask_amount","ask_price","bid_price","bid_amount"]
[1732885486692,14.72501577,3589.8,3589.7,53.46258846]
[1732885486890,12.72975577,3589.8,3589.7,53.46258846]
[1732885487095,11.33669933,3589.8,3589.7,53.46258846]
[1732885487292,10.33780933,3589.8,3589.7,53.46258846]
[1732885487495,8.47035933,3589.8,3589.7,53.46258846]
[1732885487795,8.47035933,3589.8,3589.7,48.46258846]
[1732885487997,8.47035933,3589.8,3589.7,48.37553386]
[1732885488690,7.97035933,3589.8,3589.7,48.37553386]
[1732885489492,7.97035933,3589.8,3589.7,45.16773386]
[1732885491595,7.97035933,3589.8,3589.7,45.25479922]
[1732885491996,7.47035933,3589.8,3589.7,45.25479922]
[1732885492192,7.47035933,3589.8,3589.7,45.53335307]
[1732885493703,7.47035933,3589.8,3589.7,41.66027415]
[1732885493901,7.47035933,3589.8,3589.7,41.57320879]
[1732885494102,7.47035933,3589.8,3589.7,41.66027776]
[1732885494295,7.47035933,3589.8,3589.7,41.57320879]
[1732885494602,7.47035933,3589.8,3589.7,41.66027806]
[1732885494810,7.47035933,3589.8,3589.7,41.57320879]
[1732885495100,7.47035933,3589.8,3589.7,41.07847]
[1732885495296,7.47035933,3589.8,3589.7,42.18847]
[1732885495494,7.47035933,3589.8,3589.7,42.27553867]
[1732885496095,7.47035933,3589.8,3589.7,41.16553867]
[1732885496303,7.47035933,3589.8,3589.7,41.16553917]
[1732885496498,7.47035933,3589.8,3589.7,41.07847]
[1732885497000,7.47035933,3589.8,3589.7,40.8]
[1732885497296,7.74881933,3589.8,3589.7,40.8]
[1732885497499,0.2785,3589.4,3589.3,0.2785]
[1732885497903,0.2785,3589.4,3589.3,41.0785]
[1732885500303,0.2785,3589.4,3589.3,40.8]
[1732885500502,0.2785,3589.4,3588.4,3.90423]
[1732885500698,3.2078,3589.1,3589.0,0.27852]
[1732885500905,0.27853,3589.0,3588.9,0.27853]
[1732885501104,1.54723,3589.0,3588.9,0.27853]
[1732885502006,1.2687,3589.0,3588.9,0.27853]
[1732885502801,4.34641936,3589.7,3589.6,0.27848]
[1732885503005,4.34641936,3589.7,3589.6,2.82155616]
[1732885503209,4.34641936,3589.7,3589.6,43.62155616]
[1732885503407,4.34641936,3589.7,3589.6,41.07848]
[1732885504508,12.21751101,3589.8,3589.7,0.27847]
[1732885505108,12.21751101,3589.8,3589.6,40.8]
[1732885505406,0.27849,3589.6,3589.5,0.27848]
[1732885505604,0.27849,3589.6,3589.0,0.69632]
[1732885505605,0.27849,3589.5,3589.4,0.27849]
[1732885505800,1.13279,3589.5,3589.4,41.07849]
[1732885506204,0.8543,3589.5,3589.4,41.07849]
[1732885506807,0.8543,3589.5,3589.4,40.8]
[1732885507012,1.13279,3589.5,3589.4,40.8]
[1732885507317,0.8543,3589.5,3589.0,0.69631]
[1732885507608,0.8543,3589.5,3589.4,0.2785]
[1732885508112,0.8543,3589.5,3589.1,40.8]
[1732885508412,0.2785,3589.4,3589.3,0.2785]
[1732885508812,1.13279,3589.5,3589.4,0.2785]
[1732885509214,0.8543,3589.5,3589.1,40.8]
[1732885509408,0.2785,3589.3,3589.2,0.27851]
[1732885509810,0.2785,3589.3,3589.1,40.8]
[1732885509811,0.8543,3589.5,3589.1,40.8]
[1732885510106,0.27851,3589.3,3589.2,0.27851]
[1732885510306,0.27851,3589.3,3589.1,40.8]
[1732885510307,0.27851,3589.2,3589.1,40.8]
[1732885510716,3.48631,3589.2,3589.1,40.8]
[1732885511012,3.48631,3589.2,3588.4,2.54307616]
[1732885511013,3.2078,3589.2,3588.4,2.54307616]
[1732885511202,3.2078,3589.0,3588.5,0.69642]
[1732885511407,1.11764,3588.9,3588.8,0.27854]
[1732885511708,0.27855,3588.8,3588.7,0.27855]
[1732885511903,0.8391,3588.9,3588.6,40.8]
[1732885512217,0.27855,3588.7,3588.6,41.07856]
[1732885512714,0.27855,3588.7,3588.6,41.07855]
[1732885513313,0.27855,3588.8,3588.7,0.27855]
[1732885514815,0.27855,3588.7,3588.6,41.07855]
[1732885515008,0.27855,3588.7,3588.6,40.8]
[1732885515211,0.8391,3588.9,3587.8,1.12485]
[1732885515409,0.8391,3588.9,3588.1,0.2786]
[1732885515410,3.2078,3588.2,3588.1,0.2786]
[1732885515610,3.48639,3588.2,3588.1,0.2786]
[1732885515912,3.2078,3588.2,3588.1,41.0786]
[1732885516916,3.48639,3588.2,3588.1,41.0786]
[1732885517211,3.48639,3588.2,3588.1,40.8]
[1732885518311,3.48639,3588.2,3587.7,4.36271847]
[1732885518312,3.2078,3588.2,3587.8,0.27862]
[1732885518517,0.27862,3587.8,3587.7,4.36271847]
[1732885518717,3.48642,3587.8,3587.7,4.36271847]
[1732885519713,3.2078,3587.8,3587.7,4.64134847]
[1732885520706,3.2078,3587.8,3587.7,4.86134847]
[1732885520911,3.2078,3587.8,3587.7,4.64134847]
[1732885521109,4.4662,3588.3,3588.2,0.27859]
[1732885521317,4.0537,3588.3,3588.2,0.27859]
[1732885521506,4.0537,3588.3,3588.2,41.07859]
[1732885522516,3.6317,3588.3,3588.2,41.07859]
[1732885522714,3.2078,3588.3,3588.2,41.07859]
[1732885524415,3.2078,3588.3,3588.2,41.48859]
[1732885525316,3.48638,3588.3,3588.2,40.8]
[1732885525517,0.27859,3588.2,3588.1,0.27859]
[1732885525712,1.13259,3588.2,3587.8,0.4375]
[1732885525918,0.63259,3588.2,3588.1,0.2786]
[1732885526319,0.13259,3588.2,3588.1,0.2786]
[1732885527418,3.2078,3588.3,3588.2,0.27859]
[1732885528111,3.2078,3588.3,3588.2,41.07859]
[1732885529908,3.2078,3588.3,3588.2,44.67859]
[1732885530826,3.24801571,3588.5,3588.4,0.27857]
[1732885531015,3.24801571,3588.5,3588.4,2.41857]
[1732885533418,3.2078,3588.7,3588.6,0.27856]
[1732885533727,3.2078,3588.7,3588.6,0.78856]
[1732885536921,3.2078,3588.7,3588.6,0.27856]
[1732885537217,3.48635,3588.7,3588.6,0.27856]
[1732885537422,3.2078,3588.7,3588.6,0.27856]
[1732885538818,3.6564,3588.7,3588.6,0.27856]
[1732885539324,3.2078,3588.7,3588.6,0.27856]
[1732885540421,3.2078,3588.7,3588.4,0.27857]
[1732885540724,0.27857,3588.5,3588.4,1.26857]
[1732885540929,0.70996,3588.6,3588.5,0.27857]
[1732885541126,0.70996,3588.6,3588.4,0.27857]
[1732885541127,0.27857,3588.5,3588.4,0.27857]
[1732885541333,0.4314,3588.6,3588.4,0.27857]
[1732885541334,0.70996,3588.6,3588.5,0.27857]
[1732885542028,3.91776,3588.6,3588.5,0.27857]
[1732885542629,3.6392,3588.6,3588.5,0.27857]
[1732885543027,3.2078,3588.6,3588.5,0.27857]
[1732885543725,8.63559037,3588.6,3588.5,0.27857]
[1732885543924,3.2078,3588.6,3588.5,41.07857]
[1732885544923,8.6350326,3588.6,3588.5,41.07857]
[1732885545427,4.34193006,3588.7,3588.5,40.8]
[1732885545629,4.23856304,3588.8,3588.7,0.27855]
[1732885545831,4.23856304,3588.8,3588.7,3.94564709]
[1732885546033,3.73856304,3588.8,3588.7,3.94564709]
[1732885546426,3.73856304,3588.8,3588.7,6.48872325]
[1732885546427,3.23856304,3588.8,3588.7,6.48872325]
[1732885546735,2.73856304,3588.8,3588.7,6.48872325]
[1732885547127,4.34193006,3589.2,3588.7,6.21017325]
[1732885547422,4.34193006,3589.2,3589.1,0.27852]
[1732885548029,4.34193006,3589.2,3589.1,5.16159616]
[1732885548333,4.34193006,3589.2,3589.1,5.24867241]
[1732885548544,4.34193006,3589.2,3589.1,8.88223092]
[1732885548845,4.34193006,3589.2,3589.1,8.8822305]
[1732885549043,7.57650652,3589.3,3589.2,0.27851]
[1732885549238,7.57650652,3589.3,3589.2,1.07851]
[1732885549942,7.57650652,3589.3,3589.2,41.87851]
[1732885551645,7.07650652,3589.3,3589.2,41.87851]
[1732885552642,7.07650652,3589.3,3589.2,1.07851]
[1732885553248,7.07650652,3589.3,3589.2,41.87851]
[1732885555248,7.07650652,3589.3,3589.2,1.07851]
[1732885556150,10.28430652,3589.3,3589.2,0.27851]
[1732885556347,9.78430652,3589.3,3588.8,0.4148]
[1732885556656,9.78430652,3589.3,3589.1,0.27851]
[1732885556657,0.4435,3589.2,3589.1,0.27851]
[1732885558148,6.57650652,3589.3,3589.1,8.39524017]
[1732885558359,5.30603652,3589.3,3589.2,0.72541]
[1732885558556,5.30603652,3589.3,3589.2,5.19831]
[1732885558753,5.30603652,3589.3,3589.2,8.82754603]
[1732885558950,1.35701504,3589.3,3589.2,13.74047401]
[1732885559148,7.47035933,3589.8,3589.7,0.27847]
[1732885559453,7.47035933,3589.8,3589.7,10.12564733]
[1732885559956,7.47035933,3589.8,3589.7,50.92564733]
[1732885560855,7.47035933,3589.8,3589.7,47.28154616]
[1732885565956,6.97035933,3589.8,3589.7,47.28154616]
[1732885566262,6.47035933,3589.8,3589.7,47.28154616]
[1732885567962,6.47035933,3589.8,3589.4,3.2078]
[1732885568151,0.4176,3589.7,3589.4,3.3878]
[1732885568352,0.4176,3589.7,3589.6,0.27848]
[1732885570053,0.4176,3589.7,3589.6,0.56848]
[1732885570459,6.47035933,3589.8,3589.6,0.29]
[1732885570661,6.47035933,3589.8,3589.7,2.82154616]
[1732885570963,6.47035933,3589.8,3589.7,47.91154616]
[1732885572465,5.97035933,3589.8,3589.7,51.55766778]
[1732885572863,5.47035933,3589.8,3589.7,51.92876778]
[1732885573167,5.47035933,3589.8,3589.7,49.38569162]
[1732885573556,5.47035933,3589.8,3589.7,49.53839162]
[1732885573762,4.07731065,3589.8,3589.7,50.05405221]
[1732885574160,4.07731065,3589.8,3589.7,49.96699162]
[1732885575564,4.07731065,3589.8,3589.7,50.0540509]
[1732885575867,2.18426197,3589.8,3589.7,50.0540509]
[1732885576071,2.18426197,3589.8,3589.7,49.4727509]
[1732885576365,2.18426197,3589.8,3589.7,50.12359162]
[1732885577173,2.18426197,3589.8,3589.7,46.47747]
[1732885577870,2.18426197,3589.8,3589.7,45.36847]
[1732885581174,2.18426197,3589.8,3589.7,45.45553758]
[1732885581366,2.18426197,3589.8,3589.7,48.94253872]
[1732885581571,2.18426197,3589.8,3589.7,49.55380454]
[1732885581771,2.18426197,3589.8,3589.7,49.55380274]
[1732885582278,2.18426197,3589.8,3589.7,49.02960274]
[1732885582975,1.68426197,3589.8,3589.7,49.02960274]
[1732885583168,0.4088,3590.3,3589.7,48.75113274]
[1732885583373,0.4069,3590.4,3590.3,0.27843]
[1732885583574,0.4069,3590.4,3590.3,4.39843]
[1732885583775,0.4069,3590.4,3590.3,45.19843]
[1732885590282,0.4069,3590.4,3590.3,44.92]
[1732885590585,0.4069,3590.4,3590.1,0.27844]
[1732885590781,4.62594806,3590.3,3590.1,1.78]
[1732885591082,4.62594806,3590.3,3590.1,42.58]
[1732885591479,4.34751806,3590.2,3590.1,42.58]
[1732885591783,4.34751806,3590.2,3590.1,42.85844]
[1732885592175,4.34751806,3590.2,3590.1,42.58]
[1732885593482,0.27843,3590.2,3590.1,42.58]
[1732885593785,0.69611,3590.1,3589.6,0.27848]
[1732885593982,0.69611,3590.1,3589.6,0.07908]
[1732885593983,3.2078,3589.7,3589.6,0.07908]
[1732885594180,3.48627,3589.7,3589.6,40.8]
[1732885595085,3.2078,3589.7,3589.6,41.07848]
[1732885596082,3.2078,3589.7,3589.6,40.8]
[1732885596285,3.2078,3589.7,3589.6,41.07848]
[1732885596579,3.2078,3589.7,3589.6,40.8]
[1732885596783,3.48627,3589.7,3589.6,40.8]
[1732885596984,0.27849,3589.5,3589.3,0.2785]
[1732885597187,0.847,3589.4,3589.3,0.2785]
[1732885597384,0.347,3589.4,3589.3,0.2785]
[1732885597591,0.27849,3589.5,3588.9,0.69633]
[1732885597792,4.34923228,3589.1,3589.0,0.27853]
[1732885597983,4.34923228,3589.1,3589.0,43.96853]
[1732885598788,5.71505035,3589.3,3589.0,41.07853]
[1732885599178,5.43654035,3589.3,3589.1,0.27852]
[1732885599583,5.43654035,3589.3,3589.0,40.8]
[1732885599793,5.43654035,3589.3,3589.2,0.27851]
[1732885600085,0.27849,3589.5,3589.3,0.2785]
[1732885600282,0.4337,3589.6,3589.2,2.54307616]
[1732885600482,0.4411,3589.5,3589.4,0.2785]
[1732885600882,0.4077,3589.5,3589.4,0.2785]
[1732885601479,0.4077,3589.5,3589.4,41.0785]
[1732885601888,6.52567372,3589.7,3589.4,40.8]
[1732885602085,6.52567372,3589.7,3589.6,2.82155616]
[1732885602485,12.35846691,3590.1,3589.6,2.54307616]
[1732885602686,12.18730691,3590.1,3590.0,40.8]
[1732885602989,11.90886691,3590.1,3590.0,41.07845]
[1732885603391,11.90886691,3590.1,3590.0,40.8]
[1732885603889,11.90886691,3590.1,3590.0,41.07845]
[1732885604485,11.90886691,3590.1,3590.0,41.39845]
[1732885605991,11.90886691,3590.1,3590.0,43.94152616]
[1732885607290,8.70106691,3590.1,3590.0,43.94152616]
[1732885607984,10.87345065,3590.5,3590.1,0.27844]
[1732885607985,4.34993098,3590.2,3590.1,0.27844]
[1732885608190,4.34993098,3590.2,3590.1,1.65844]
[1732885608591,4.34998195,3590.2,3590.1,1.65844]
[1732885608787,4.34998195,3590.7,3590.1,10.03938491]
[1732885608982,4.34998195,3591.0,3590.6,2.54307616]
[1732885609191,7.55778195,3591.1,3590.7,0.8411]
[1732885609493,7.55778195,3591.1,3591.0,0.27837]
[1732885609699,4.34998195,3591.1,3591.0,3.52144616]
[1732885609989,4.34998195,3591.2,3591.1,0.27836]
[1732885610185,4.79748195,3591.3,3591.1,2.68]
[1732885610384,4.34998195,3591.4,3591.3,0.27835]
[1732885610591,4.34998195,3591.5,3591.4,0.27834]
[1732885610890,4.34998195,3591.5,3591.4,4.42334]
[1732885611188,4.34998195,3591.5,3591.4,45.22334]
[1732885613396,4.79450816,3591.8,3591.4,44.945]
[1732885613589,4.34560816,3591.7,3591.5,0.27833]
[1732885613790,4.34560816,3591.7,3591.6,0.27833]
[1732885614293,4.34560816,3591.8,3591.6,0.27833]
[1732885614491,4.34560816,3591.8,3591.4,41.235]
[1732885614692,4.34560816,3591.8,3591.7,0.27832]
[1732885615193,7.55221047,3591.9,3591.8,0.27831]
[1732885615789,3.2078,3591.9,3591.8,0.27831]
[1732885615998,3.2078,3591.9,3591.4,41.235]
[1732885616294,3.2078,3591.9,3591.7,0.27831]
[1732885616496,3.2078,3591.9,3591.8,0.27831]
[1732885617695,2.7078,3591.9,3591.8,0.27831]
[1732885617892,2.2108,3591.9,3591.8,0.27831]
[1732885620190,0.4104,3592.0,3591.6,0.27832]
[1732885620391,0.27831,3591.8,3591.5,0.27833]
[1732885620689,3.2078,3591.9,3591.5,0.16]
[1732885620893,3.2078,3591.9,3591.7,0.27831]
[1732885621194,0.4104,3592.0,3591.5,40.8]
[1732885621195,3.6182,3592.0,3591.5,40.8]
[1732885621395,3.6182,3592.0,3591.7,0.27831]
[1732885621593,0.27831,3591.9,3591.6,0.27833]
[1732885621791,3.6182,3592.0,3591.6,1.02]
[1732885621989,3.8965,3592.0,3591.6,1.29832]
[1732885623096,0.2783,3591.9,3591.6,1.29832]
[1732885623292,3.8965,3592.0,3591.7,0.27832]
[1732885624492,3.6182,3592.0,3591.8,0.27831]
[1732885624799,3.8965,3592.0,3591.7,0.27831]
[1732885625292,0.27831,3591.9,3591.6,0.27832]
[1732885625489,0.27833,3591.6,3591.5,40.8]
[1732885625790,3.6182,3592.0,3591.5,41.15]
[1732885625990,0.2783,3591.9,3591.5,41.42833]
[1732885626193,3.48613,3591.6,3591.5,41.15]
[1732885626500,3.2078,3591.6,3591.5,0.62833]
[1732885626993,3.2078,3591.6,3591.5,41.42833]
[1732885627297,2.7078,3591.6,3591.5,43.97140616]
[1732885629394,0.4104,3592.0,3591.9,0.2783]
[1732885629992,0.4104,3592.0,3591.9,0.7175]
[1732885630289,0.8476,3592.3,3591.9,0.4392]
[1732885630494,0.8476,3592.3,3592.2,0.27828]
[1732885631090,0.4277,3592.4,3592.3,0.27827]
[1732885631895,0.4277,3592.4,3592.1,2.54307616]
[1732885632203,0.4277,3592.4,3592.2,0.27827]
[1732885632503,0.4277,3592.4,3592.3,0.27827]
[1732885635299,0.4277,3592.4,3592.3,41.07827]
[1732885640605,0.27825,3592.7,3592.4,0.27826]
[1732885641397,0.27824,3592.8,3592.4,0.27826]
[1732885641600,0.27824,3592.8,3592.5,0.27826]
[1732885642209,0.8765,3592.9,3592.5,0.27826]
[1732885642400,0.27824,3592.8,3592.5,0.27826]
[1732885643006,0.27824,3592.8,3592.6,0.27825]
[1732885643795,0.44,3592.7,3592.6,0.27825]
[1732885645608,0.71824,3592.7,3592.6,0.27825]
[1732885646002,0.44,3592.7,3592.6,0.27825]
[1732885646199,0.71824,3592.7,3592.6,0.27825]
[1732885647102,0.44,3592.7,3592.3,40.8]
[1732885647303,0.71825,3592.7,3592.3,41.88]
[1732885647503,0.44,3592.7,3592.3,41.88]
[1732885647705,0.44,3592.7,3591.6,0.69581]
[1732885647706,3.2078,3592.6,3591.6,0.69581]
[1732885648009,0.2783,3592.0,3591.9,0.27829]
[1732885648208,0.2783,3592.0,3591.9,41.07829]
[1732885648404,0.2783,3592.0,3591.9,41.0783]
[1732885648601,0.2783,3592.0,3591.9,40.8]
[1732885649515,0.2783,3592.0,3591.9,41.0783]
[1732885650004,0.2783,3592.0,3591.9,40.8]
[1732885650504,0.69574,3592.0,3591.0,3.2078]
[1732885650704,3.2078,3591.7,3591.1,0.69591]
[1732885650907,3.2078,3591.7,3591.6,0.27833]
[1732885651112,3.2078,3591.7,3591.6,0.41833]
[1732885651805,3.2078,3591.7,3591.6,0.14]
[1732885651806,3.48612,3591.7,3591.6,0.14]
[1732885652008,3.48612,3591.7,3591.6,41.21833]
[1732885652911,3.48612,3591.7,3591.6,40.94]
[1732885653301,3.48612,3591.7,3591.6,41.21833]
[1732885655815,0.4424,3592.1,3592.0,0.27829]
[1732885656310,5.88134114,3592.1,3592.0,0.27829]
[1732885656506,0.4424,3592.1,3592.0,0.27829]
[1732885656907,3.2078,3592.3,3592.2,0.27828]
[1732885657805,3.2078,3592.3,3592.2,2.65828]
[1732885658815,2.7078,3592.3,3592.2,2.65828]
[1732885659007,5.43905008,3592.4,3592.3,0.27827]
[1732885659807,5.43905008,3592.4,3591.9,2.96177616]
[1732885660008,3.2628896,3592.0,3591.9,7.32007616]
[1732885660313,2.7628896,3592.0,3591.9,7.32007616]
[1732885661116,4.35051947,3592.1,3592.0,0.2783]
[1732885661411,4.35051947,3592.1,3592.0,3.6983]
[1732885662311,5.43905008,3592.3,3592.1,0.27829]
[1732885662312,4.35051947,3592.2,3592.1,0.27829]
[1732885662514,4.35051947,3592.2,3592.1,2.58829]
[1732885663815,9.78956955,3592.3,3592.1,2.31]
[1732885664014,4.35051947,3592.2,3592.1,2.58829]
[1732885665515,4.35008467,3592.2,3592.1,2.31]
[1732885665719,4.35008467,3592.3,3592.2,0.27828]
[1732885665923,5.43754733,3592.5,3592.4,0.27826]
[1732885667828,0.27826,3592.4,3592.3,0.4225]
[1732885668117,0.27826,3592.4,3592.3,1.5325]
[1732885668819,0.27826,3592.4,3592.3,1.11]
[1732885669018,5.0,3592.4,3591.5,0.4207]
[1732885669216,0.27826,3592.5,3592.3,0.27827]
[1732885669517,0.27826,3592.4,3592.3,0.97]
[1732885670423,0.27826,3592.4,3592.3,1.24827]
[1732885670618,0.27826,3592.4,3592.3,0.97]
[1732885670814,0.27826,3592.4,3592.3,1.24827]
[1732885672118,3.6504,3592.7,3592.4,0.27825]
[1732885672119,0.27826,3592.5,3592.4,0.27825]
[1732885675315,3.2078,3592.6,3592.4,0.27825]
[1732885675624,3.2078,3592.6,3592.5,0.27826]
[1732885675823,3.2078,3592.6,3592.5,2.70826]
[1732885676023,3.2078,3592.6,3592.5,43.50826]
[1732885676220,3.48605,3592.6,3592.5,43.50826]
[1732885676521,0.27825,3592.6,3592.5,43.50826]
[1732885681317,0.27825,3592.6,3592.5,43.23]
[1732885681715,0.27825,3592.6,3592.5,43.50826]
[1732885682024,0.27825,3592.6,3592.5,43.23]
[1732885682221,0.27825,3592.6,3592.5,2.43]
[1732885682728,0.27825,3592.6,3592.5,2.70826]
[1732885683219,7.89490952,3592.6,3592.5,2.70826]
[1732885683816,7.89490952,3592.6,3592.5,43.50826]
[1732885684222,7.61665952,3592.6,3592.5,43.50826]
[1732885684419,7.89490952,3592.6,3592.5,43.50826]
[1732885686828,7.61665952,3592.6,3592.5,43.50826]
[1732885687221,10.82445952,3592.7,3592.5,43.23]
[1732885687416,10.82445952,3592.7,3592.6,0.70325]
[1732885687722,3.2078,3592.7,3592.6,1.10915]
[1732885687924,3.48604,3592.7,3592.6,1.10915]
[1732885688429,3.2078,3592.7,3592.6,1.10915]
[1732885688621,3.48604,3592.7,3592.6,1.10915]
[1732885689630,3.2078,3592.7,3592.6,1.10915]
[1732885689827,6.52969701,3592.7,3592.6,5.53222616]
[1732885690027,3.00520815,3592.7,3592.6,5.94972616]
[1732885690232,6.97665952,3592.8,3592.7,0.27824]
[1732885690527,8.17505266,3593.0,3592.9,0.27823]
[1732885690830,8.17505266,3593.0,3592.9,14.79910616]
[1732885691325,8.17505266,3593.0,3592.9,55.59910616]
[1732885693128,6.52969701,3593.5,3593.4,0.27819]
[1732885693429,6.52969701,3593.5,3593.4,7.27126616]
[1732885694021,6.52969701,3593.5,3593.4,45.52819]
[1732885694225,0.27815,3593.9,3593.5,0.27817]
[1732885694425,1.2767,3594.0,3593.4,45.25]
[1732885694426,0.27816,3593.8,3593.4,40.8]
[1732885694726,0.27816,3593.8,3593.5,0.27818]
[1732885695036,0.27815,3593.9,3593.6,0.27817]
[1732885695333,1.2767,3594.0,3593.9,0.27815]
[1732885696135,1.2767,3594.0,3593.9,41.07815]
[1732885696331,3.2078,3594.6,3593.9,41.56]
[1732885696530,1.2675,3594.5,3594.3,0.27812]
[1732885696735,1.2675,3594.5,3594.3,2.16812]
[1732885697236,1.2675,3594.5,3594.3,1.89]
[1732885697436,9.79504621,3595.0,3594.3,1.89]
[1732885697634,0.2781,3594.6,3594.3,2.16811]
[1732885697838,0.4136,3594.5,3594.4,0.27811]
[1732885698135,0.4136,3594.5,3594.4,0.03]
[1732885698436,0.4136,3594.5,3594.4,41.10811]
[1732885698933,0.8411,3594.5,3594.4,41.10811]
[1732885699335,0.4275,3594.5,3594.4,41.10811]
[1732885699630,10.62424621,3595.0,3594.9,0.27807]
[1732885701234,10.20864621,3595.0,3594.9,0.27807]
[1732885701439,9.79504621,3595.0,3594.9,0.27807]
[1732885701937,9.79504621,3595.0,3594.5,0.132]
[1732885702130,9.79504621,3595.0,3594.9,0.27807]
[1732885702329,9.79504621,3595.0,3594.9,7.37587]
[1732885702532,0.4084,3595.4,3594.9,7.0978]
[1732885702733,0.4084,3595.4,3595.3,41.07804]
[1732885703534,3.2078,3596.0,3595.3,44.0078]
[1732885703737,1.3389,3595.9,3595.4,0.27803]
[1732885703941,1.3389,3595.9,3595.3,44.0078]
[1732885704244,1.3389,3595.9,3595.6,0.27801]
[1732885704436,1.3389,3595.9,3595.5,0.27802]
[1732885704837,0.8898,3595.9,3595.3,46.55087616]
[1732885705040,0.4478,3595.9,3595.4,0.1316]
[1732885705243,0.8898,3595.9,3595.5,0.27802]
[1732885705535,1.1678,3595.9,3595.6,0.27801]
[1732885705741,0.8898,3595.9,3595.3,44.0078]
[1732885705931,0.4478,3595.9,3595.7,0.278]
[1732885706135,0.4478,3595.9,3595.3,46.55087616]
[1732885706136,0.4478,3595.9,3595.8,0.278]
[1732885706943,0.4478,3595.9,3595.7,0.278]
[1732885707140,0.4478,3595.9,3595.8,0.278]
[1732885707344,0.4478,3595.9,3595.3,5.75087616]
[1732885707646,0.4478,3595.9,3595.8,40.8]
[1732885707945,0.4478,3595.9,3595.8,41.078]
[1732885708144,3.2078,3596.0,3595.8,40.8]
[1732885708345,3.2078,3596.0,3595.9,0.27799]
[1732885709839,3.2078,3596.0,3595.9,2.82106616]
[1732885710041,3.2078,3596.4,3595.9,2.54307616]
[1732885710253,3.6342,3596.8,3596.5,0.27794]
[1732885710445,3.6342,3596.8,3596.5,0.27795]
[1732885710644,3.6342,3596.8,3596.4,0.27795]
[1732885710846,3.91213,3596.8,3596.4,0.27795]
[1732885711152,0.27794,3596.6,3596.2,0.27797]
[1732885711556,0.8349,3596.7,3596.2,0.27797]
[1732885711849,0.27794,3596.6,3596.1,3.48577]
[1732885712244,0.27797,3596.3,3595.9,0.27799]
[1732885712444,0.4184,3596.2,3595.8,40.8]
[1732885712645,0.27797,3596.2,3595.9,0.27799]
[1732885712842,0.18928,3596.1,3595.9,0.27799]
[1732885713049,0.4195,3596.0,3595.9,0.27799]
[1732885717051,0.4145,3596.6,3595.9,0.2]
[1732885717246,0.4243,3596.5,3596.2,2.54307616]
[1732885717654,0.4243,3596.5,3596.2,2.82104616]
[1732885717852,0.70225,3596.5,3596.2,2.82104616]
[1732885718058,0.27796,3596.4,3596.2,2.54307616]
[1732885718253,0.27796,3596.4,3596.1,3.48577]
[1732885718254,0.4243,3596.5,3595.9,0.27799]
[1732885718559,0.27798,3596.1,3596.0,40.8]
[1732885718759,3.2078,3596.3,3596.0,40.8]
[1732885719258,0.27798,3596.1,3596.0,40.8]
[1732885719755,3.2078,3596.3,3596.0,40.8]
[1732885719959,0.27798,3596.1,3596.0,40.8]
[1732885720161,0.27798,3596.1,3596.0,41.07799]
[1732885720662,3.2078,3596.3,3596.1,0.27797]
[1732885720663,0.27798,3596.2,3596.1,0.27797]
[1732885723058,3.48577,3596.3,3596.2,0.27797]
[1732885724160,3.2078,3596.3,3596.2,0.27797]
[1732885724961,0.27796,3596.3,3596.2,0.27797]
[1732885726056,3.2078,3596.4,3596.3,0.27796]
[1732885726658,0.4243,3596.5,3596.4,0.27796]
[1732885728959,0.4145,3596.6,3596.5,0.27795]
[1732885731354,3.2078,3597.4,3596.5,40.8]
[1732885731554,0.2779,3597.2,3596.9,0.27791]
[1732885731754,0.2779,3597.2,3597.0,0.27791]
[1732885732262,0.4347,3597.1,3596.6,3.2078]
[1732885732461,0.4347,3597.1,3597.0,0.27791]
[1732885733264,0.4347,3597.1,3597.0,2.82098616]
[1732885734663,0.4347,3597.1,3597.0,0.27791]
[1732885734866,0.4256,3597.3,3596.7,2.54307616]
[1732885735160,0.4256,3597.3,3597.2,0.27789]
[1732885735756,0.3664,3597.6,3597.5,0.27787]
[1732885735961,3.2078,3598.0,3597.5,0.27787]
[1732885735962,0.27785,3597.8,3597.5,0.27787]
[1732885736258,3.48563,3598.0,3597.7,0.27785]
[1732885736463,0.4049,3597.9,3597.4,3.2078]
[1732885736661,0.4049,3597.9,3597.7,0.27785]
[1732885736862,0.4049,3597.9,3597.8,40.8]
[1732885737462,0.4049,3597.9,3597.8,41.07785]
[1732885737963,0.68274,3597.9,3597.8,40.8]
[1732885738863,0.68274,3597.9,3597.3,2.54307616]
[1732885738864,0.27786,3597.7,3597.6,0.27785]
[1732885739062,0.27785,3597.8,3597.7,0.27785]
[1732885739264,0.70465,3597.8,3597.7,0.27785]
[1732885740462,0.70466,3597.8,3597.7,0.27786]
[1732885740962,0.27788,3597.4,3597.3,0.27788]
[1732885741166,0.27787,3597.5,3597.4,0.27787]
[1732885742363,3.2078,3597.6,3597.1,41.49476]
[1732885742572,3.48567,3597.6,3597.5,0.27787]
[1732885743069,0.4268,3597.8,3597.7,0.27786]
[1732885743567,3.89054,3597.9,3597.5,2.54307616]
[1732885743568,0.4049,3597.9,3597.8,0.27785]
[1732885744371,0.4091,3598.1,3598.0,0.27783]
[1732885745268,0.4381,3598.6,3598.5,0.27779]
[1732885747172,5.85952004,3598.9,3598.8,0.27777]
[1732885747373,0.27778,3598.7,3598.6,0.27778]
[1732885747569,0.27778,3598.7,3598.2,42.33904]
[1732885747570,5.85952004,3598.9,3598.2,42.33904]
[1732885747764,5.85952004,3598.9,3598.2,43.30904]
[1732885747972,0.27777,3598.8,3598.7,0.27777]
[1732885748169,5.85952004,3598.9,3598.2,0.8445]
[1732885748471,5.85952004,3598.9,3598.8,0.27777]